fUST/lending_fUST_20240221
["ID","MTS","AMOUNT","RATE_DAILY","PERIOD"]
[314633569,1708479039481,-257.48588981,0.00020248,2]
[314633570,1708479039490,-500.0,0.00020248,2]
[314633571,1708479039500,-628.08007038,0.00020248,2]
[314633572,1708479039509,-500.0,0.00020248,2]
[314633573,1708479039518,-500.0,0.00020248,2]
[314633574,1708479039527,-500.0,0.00020248,2]
[314633575,1708479039536,-686.44,0.00020248,2]
[314633576,1708479039545,-500.0,0.00020248,2]
[314633577,1708479039554,-500.56111114,0.00020248,2]
[314633578,1708479039563,-500.0,0.00020248,2]
[314633579,1708479039572,-1000.0,0.00020248,2]
[314633580,1708479039581,-500.0,0.00020248,2]
[314633581,1708479039591,-500.0,0.00020248,2]
[314633582,1708479039600,-500.0,0.00020248,2]
[314633583,1708479039609,-520.83383471,0.00020248,2]
[314633584,1708479039619,-500.0,0.00020248,2]
[314633585,1708479039629,-500.0,0.00020248,2]
[314633586,1708479039638,-500.0,0.00020248,2]
[314633587,1708479039648,-614.70782231,0.00020248,2]
[314633588,1708479039658,-500.0,0.00020248,2]
[314633589,1708479039667,-500.0,0.00020248,2]
[314633590,1708479039676,-552.73,0.00020248,2]
[314633591,1708479039686,-500.0,0.00020248,2]
[314633592,1708479039695,-500.0,0.00020248,2]
[314633593,1708479039704,-500.0,0.00020248,2]
[314633594,1708479039714,-600.0,0.00020248,2]
[314633595,1708479039723,-501.41719031,0.00020248,2]
[314633596,1708479039732,-500.0,0.00020248,2]
[314633597,1708479039741,-500.0,0.00020248,2]
[314633598,1708479039751,-1194.25,0.00020248,2]
[314633599,1708479039760,-4602.05,0.00020248,2]
[314633600,1708479039769,-500.0,0.00020248,2]
[314633601,1708479039778,-500.0,0.00020248,2]
[314633602,1708479039787,-500.0,0.00020248,2]
[314633603,1708479039798,-500.0,0.00020248,2]
[314633604,1708479039807,-14190.69,0.00020248,2]
[314633605,1708479039817,-500.0,0.00020248,2]
[314633606,1708479039826,-20609.22,0.00020248,2]
[314633607,1708479039835,-500.0,0.00020248,2]
[314633608,1708479039844,-5825.58,0.00020248,2]
[314633609,1708479039853,-500.0,0.00020248,2]
[314633610,1708479039862,-500.0,0.00020248,2]
[314633611,1708479039872,-500.0,0.00020248,2]
[314633612,1708479039881,-500.0,0.00020248,2]
[314633613,1708479039890,-500.0,0.00020248,2]
[314633614,1708479039899,-500.0,0.00020248,2]
[314633615,1708479039908,-500.0,0.00020248,2]
[314633616,1708479039918,-500.0,0.00020248,2]
[314633617,1708479039927,-1577.93,0.00020248,2]
[314633618,1708479039936,-4313.14,0.00020248,2]
[314633619,1708479039945,-500.0,0.00020248,2]
[314633620,1708479039954,-663.29,0.00020248,2]
[314633621,1708479039963,-670.92,0.00020248,2]
[314633622,1708479039972,-500.0,0.00020248,2]
[314633623,1708479039982,-1044.75,0.00020248,2]
[314633624,1708479039991,-500.0,0.00020248,2]
[314633625,1708479040003,-500.0,0.00020248,2]
[314633626,1708479040016,-500.0,0.00020248,2]
[314633627,1708479040025,-500.0,0.00020248,2]
[314633628,1708479040035,-500.0,0.00020248,2]
[314633629,1708479040045,-644.69,0.00020248,2]
[314633631,1708479040054,-500.0,0.00020248,2]
[314633632,1708479040063,-500.0,0.00020248,2]
[314633633,1708479040073,-869.07,0.00020248,2]
[314633634,1708479040083,-500.0,0.00020248,2]
[314633635,1708479040093,-500.0,0.00020248,2]
[314633636,1708479040102,-5283.01,0.00020248,2]
[314633637,1708479040111,-500.0,0.00020248,2]
[314633638,1708479040120,-8114.31,0.00020248,2]
[314633639,1708479040129,-500.0,0.00020248,2]
[314633640,1708479040138,-500.0,0.00020248,2]
[314633641,1708479040147,-500.0,0.00020248,2]
[314633642,1708479040157,-500.0,0.00020248,2]
[314633643,1708479040166,-500.0,0.00020248,2]
[314633644,1708479040176,-311.29389314,0.00020249,2]
[314633645,1708479040185,-500.0,0.00020249,2]
[314633646,1708479040194,-242.27992904,0.00020249,2]
[314633647,1708479040203,-500.0,0.00020249,2]
[314633648,1708479040212,-567.66,0.00020249,2]
[314633649,1708479040221,-600.54,0.00020249,2]
[314633650,1708479040230,-1491.44,0.00020249,2]
[314633651,1708479040239,-583.61,0.00020249,2]
[314633652,1708479040248,-500.0,0.00020249,2]
[314633654,1708479040257,-5913.39,0.00020249,2]
[314633655,1708479040266,-1000.0,0.00020249,2]
[314633656,1708479040276,-500.0,0.00020249,2]
[314633658,1708479040285,-500.0,0.00020249,2]
[314633660,1708479040294,-500.0,0.00020249,2]
[314633661,1708479040303,-500.0,0.00020249,2]
[314633663,1708479040312,-500.0,0.00020249,2]
[314633665,1708479040321,-6013.1,0.00020249,2]
[314633667,1708479040330,-2927.46,0.00020249,2]
[314633668,1708479040339,-500.0,0.0002025,2]
[314633669,1708479040348,-500.0,0.0002025,2]
[314633670,1708479040357,-500.0,0.0002025,2]
[314633671,1708479040366,-20989.56,0.0002025,2]
[314633672,1708479040375,-500.0,0.0002025,2]
[314633673,1708479040384,-4052.35,0.0002025,2]
[314633674,1708479040393,-500.0,0.0002025,2]
[314633675,1708479040402,-500.0,0.0002025,2]
[314633676,1708479040412,-4046.25,0.0002025,2]
[314633677,1708479040421,-500.0,0.0002025,2]
[314633678,1708479040430,-582.63,0.0002025,2]
[314633679,1708479040440,-607.2380826,0.00020251,2]
[314633680,1708479040449,-500.0,0.00020251,2]
[314633682,1708479040458,-500.0,0.00020251,2]
[314633683,1708479040467,-532.3282837,0.00020251,2]
[314633684,1708479040476,-500.0,0.00020251,2]
[314633685,1708479040486,-500.0,0.00020251,2]
[314633686,1708479040495,-776.27,0.00020251,2]
[314633687,1708479040503,-500.0,0.00020251,2]
[314633688,1708479040512,-500.0,0.00020251,2]
[314633689,1708479040522,-769.98,0.00020251,2]
[314633690,1708479040531,-500.0,0.00020251,2]
[314633691,1708479040540,-500.0,0.00020251,2]
[314633692,1708479040550,-500.0,0.00020251,2]
[314633693,1708479040559,-500.0,0.00020251,2]
[314633694,1708479040568,-2776.63,0.00020251,2]
[314633695,1708479040577,-500.0,0.00020251,2]
[314633696,1708479040586,-500.0,0.00020251,2]
[314633697,1708479040595,-500.0,0.00020251,2]
[314633698,1708479040604,-500.0,0.00020251,2]
[314633699,1708479040613,-500.0,0.00020251,2]
[314633700,1708479040623,-863.85,0.00020251,2]
[314633701,1708479040632,-265.14873351,0.00020251,2]
[314633702,1708479040641,-640.75,0.00020251,2]
[314633703,1708479040651,-500.0,0.00020251,2]
[314633704,1708479040661,-500.0,0.00020251,2]
[314633705,1708479040671,-500.0,0.00020251,2]
[314633706,1708479040680,-897.51,0.00020251,2]
[314633707,1708479040690,-500.0,0.00020251,2]
[314633708,1708479040699,-500.0,0.00020251,2]
[314633710,1708479040708,-719.55,0.00020251,2]
[314633711,1708479040718,-155.02551061,0.00020251,2]
[314633712,1708479040727,-500.0,0.00020251,2]
[314633713,1708479040737,-500.0,0.00020251,2]
[314633714,1708479040746,-500.0,0.00020251,2]
[314633715,1708479040755,-514.12,0.00020251,2]
[314633716,1708479040764,-500.0,0.00020251,2]
[314633717,1708479040774,-500.0,0.00020251,2]
[314633718,1708479040783,-500.0,0.00020251,2]
[314633719,1708479040793,-500.0,0.00020251,2]
[314633720,1708479040803,-500.0,0.00020251,2]
[314633721,1708479040813,-500.0,0.00020251,2]
[314633722,1708479040822,-500.0,0.00020251,2]
[314633723,1708479040831,-500.0,0.00020251,2]
[314633724,1708479040840,-619.38,0.00020251,2]
[314633725,1708479040849,-500.0,0.00020251,2]
[314633726,1708479040858,-500.0,0.00020251,2]
[314633727,1708479040867,-500.0,0.00020251,2]
[314633728,1708479040876,-500.0,0.00020251,2]
[314633729,1708479040885,-200.0,0.00020251,2]
[314633730,1708479040894,-500.0,0.00020251,2]
[314633731,1708479040904,-758.9,0.00020251,2]
[314633732,1708479040913,-500.0,0.00020251,2]
[314633733,1708479040922,-500.0,0.00020251,2]
[314633734,1708479040931,-500.0,0.00020251,2]
[314633735,1708479040940,-500.0,0.00020251,2]
[314633736,1708479040949,-500.0,0.00020251,2]
[314633737,1708479040958,-500.0,0.00020251,2]
[314633738,1708479040968,-1280.05,0.00020251,2]
[314633739,1708479040976,-623.81,0.00020251,2]
[314633740,1708479040986,-500.0,0.00020251,2]
[314633741,1708479040995,-159.38910075,0.00020251,2]
[314633743,1708479041007,-460.42970743,0.00020251,2]
[314633744,1708479041016,-500.0,0.00020251,2]
[314633745,1708479041025,-338.12142664,0.00020251,2]
[314633746,1708479041033,-500.0,0.00020251,2]
[314633747,1708479041043,-679.53,0.00020251,2]
[314633748,1708479041053,-500.0,0.00020251,2]
[314633749,1708479041062,-500.0,0.00020251,2]
[314633750,1708479041072,-500.0,0.00020251,2]
[314633751,1708479041081,-500.0,0.00020251,2]
[314633752,1708479041090,-665.78,0.00020251,2]
[314633753,1708479041099,-500.0,0.00020251,2]
[314633754,1708479041108,-500.0,0.00020251,2]
[314633755,1708479041117,-500.0,0.00020251,2]
[314633756,1708479041126,-500.0,0.00020251,2]
[314633757,1708479041135,-500.0,0.00020251,2]
[314633758,1708479041144,-518.53003274,0.00020251,2]
[314633759,1708479041153,-576.11,0.00020251,2]
[314633760,1708479041162,-19765.87815677,0.00020252,2]
[314633761,1708479041171,-168.2764688,0.000203,2]
[314633762,1708479041180,-289.27470645,0.00020355,2]
[314633763,1708479041189,-300.0,0.0002041,2]
[314633764,1708479041198,-1346.72968159,0.00020418,2]
[314633765,1708479041208,-9652.20196294,0.00020422,2]
[314633766,1708479041218,-500.0,0.00020426,2]
[314633767,1708479041227,-1722.58,0.00020426,2]
[314633768,1708479041236,-624.42,0.00020426,2]
[314633769,1708479041246,-500.0,0.00020426,2]
[314633770,1708479041255,-500.0,0.00020426,2]
[314633772,1708479041407,-500.0,0.00020426,2]
[314633773,1708479041416,-500.0,0.00020426,2]
[314633774,1708479041426,-500.0,0.00020426,2]
[314633775,1708479041435,-500.0,0.00020426,2]
[314633776,1708479041444,-211.64001927,0.00020426,2]
[314633777,1708479041453,-500.0,0.00020426,2]
[314633778,1708479041462,-530.35,0.00020426,2]
[314633779,1708479041471,-826.88,0.00020426,2]
[314633780,1708479041481,-377.37212286,0.00020426,2]
[314633781,1708479041490,-500.0,0.00020426,2]
[314633782,1708479041499,-1224.5,0.00020426,2]
[314633783,1708479041509,-500.0,0.00020426,2]
[314633784,1708479041518,-500.0,0.00020426,2]
[314633785,1708479041528,-784.76291776,0.00020488,2]
[314633786,1708479041538,-5000.0,0.00020489,2]
[314633787,1708479041547,-1340.0597809,0.00020489,2]
[314633788,1708479041556,-5000.0,0.00020489,2]
[314633789,1708479041565,-5000.0,0.00020489,2]
[314633790,1708479041574,-5000.0,0.00020489,2]
[314633791,1708479041584,-8670.6065204,0.00020489,2]
[314633792,1708479041593,-5000.0,0.00020489,2]
[314633793,1708479041602,-50000.0,0.00020492,2]
[314633794,1708479041611,-80403.6784098,0.00020492,2]
[314633795,1708479041620,-14834.55126506,0.00020499,2]
[314633796,1708479041629,-5000.0,0.00020499,2]
[314633797,1708479041638,-1177.58597247,0.00020499,2]
[314633798,1708479041648,-34641.12,0.00020517,2]
[314633799,1708479041657,-500.0,0.00020517,2]
[314633800,1708479041666,-500.0,0.00020517,2]
[314633801,1708479041675,-1488.4,0.00020517,2]
[314633802,1708479041685,-500.0,0.00020517,2]
[314633803,1708479041694,-500.0,0.00020518,2]
[314633804,1708479041703,-1384.94,0.00020518,2]
[314633805,1708479041713,-5097.21,0.00020518,2]
[314633806,1708479041723,-39685.58,0.00020518,2]
[314633807,1708479041732,-764.58,0.00020518,2]
[314633808,1708479041741,-1905.45,0.00020518,2]
[314633809,1708479041750,-1296.81,0.00020518,2]
[314633810,1708479041760,-1525.57,0.00020518,2]
[314633811,1708479041769,-1325.28,0.00020518,2]
[314633812,1708479041778,-500.0,0.00020518,2]
[314633813,1708479041787,-500.0,0.00020518,2]
[314633814,1708479041797,-2897.41,0.00020518,2]
[314633815,1708479041806,-500.0,0.0002052,2]
[314633816,1708479041815,-575.78,0.0002052,2]
[314633817,1708479041824,-402.93685948,0.0002052,2]
[314633818,1708479041834,-338.12712318,0.0002052,2]
[314633819,1708479041843,-500.0,0.0002052,2]
[314633820,1708479041853,-500.0,0.0002052,2]
[314633821,1708479041862,-324.6251805,0.0002052,2]
[314633822,1708479041879,-175.3748195,0.0002052,2]
[314633823,1708479041889,-324.6251805,0.0002052,2]
[314633824,1708479041900,-555.5248195,0.0002052,2]
[314633825,1708479041909,-500.0,0.0002052,2]
[314633826,1708479041918,-190.5854363,0.0002052,2]
[314633827,1708479041929,-309.4145637,0.0002052,2]
[314633828,1708479041938,-500.0,0.0002052,2]
[314633829,1708479041947,-860.55,0.0002052,2]
[314633830,1708479041956,-500.0,0.0002052,2]
[314633831,1708479041965,-500.0,0.0002052,2]
[314633832,1708479041974,-3407.02846355,0.0002052,2]
[314633833,1708479042591,-362.68449822,0.00020243,2]
[314633835,1708479042603,-2985.11550178,0.00020243,2]
[314633836,1708479042613,-500.56638776,0.00020243,2]
[314633837,1708479042622,-651.72,0.00020248,2]
[314633838,1708479042632,-3347.8,0.00020517,2]
[314633839,1708479042641,-265.06153645,0.0002052,2]
[314633841,1708479042652,-171.96178539,0.0002052,2]
[314633843,1708479042662,-500.0,0.0002052,2]
[314633845,1708479042671,-500.0,0.0002052,2]
[314633846,1708479042681,-569.07,0.0002052,2]
[314633847,1708479042691,-500.0,0.0002052,2]
[314633848,1708479042700,-500.0,0.0002052,2]
[314633849,1708479042709,-579.01,0.0002052,2]
[314633851,1708479042719,-2718.87402722,0.0002052,2]
[314633852,1708479042731,-403.5335302,0.0002052,2]
[314633853,1708479042742,-50.54244258,0.0002052,2]
[314633854,1708479042752,-2231.58,0.0002052,2]
[314633855,1708479042761,-500.0,0.0002052,2]
[314633856,1708479042771,-500.0,0.0002052,2]
[314633857,1708479042780,-500.0,0.0002052,2]
[314633859,1708479042789,-500.0,0.0002052,2]
[314633861,1708479042798,-868.02,0.0002052,2]
[314633862,1708479042808,-500.0,0.0002052,2]
[314633863,1708479042817,-500.0,0.0002052,2]
[314633864,1708479042827,-613.49,0.0002052,2]
[314633865,1708479042836,-500.0,0.0002052,2]
[314633866,1708479042846,-500.0,0.0002052,2]
[314633867,1708479042855,-500.0,0.0002052,2]
[314633868,1708479042864,-500.0,0.0002052,2]
[314633869,1708479042874,-339.80877319,0.0002052,2]
[314633870,1708479042886,-160.19122681,0.0002052,2]
[314633871,1708479042896,-500.0,0.0002052,2]
[314633872,1708479042905,-500.0,0.0002052,2]
[314633873,1708479042915,-3075.57,0.0002052,2]
[314633874,1708479042924,-500.0,0.0002052,2]
[314633875,1708479042933,-761.99,0.0002052,2]
[314633877,1708479042942,-1261.15,0.00020522,2]
[314633878,1708479042952,-526.30153984,0.00020522,2]
[314633879,1708479042961,-291.55325439,0.00020522,2]
[314633880,1708479042973,-296.34021631,0.00020522,2]
[314633881,1708479042982,-191.17625349,0.00020522,2]
[314633882,1708479042994,-364.05374651,0.00020522,2]
[314633883,1708479043006,-500.0,0.00020522,2]
[314633884,1708479043015,-500.0,0.00020522,2]
[314633885,1708479043025,-450.13814591,0.00020522,2]
[314633886,1708479043034,-732.91227002,0.00020522,2]
[314633887,1708479043047,-429.58772998,0.00020522,2]
[314633888,1708479043056,-546.34,0.00020522,2]
[314633889,1708479043065,-500.0,0.00020522,2]
[314633890,1708479043075,-500.0,0.00020522,2]
[314633891,1708479043086,-500.0,0.00020522,2]
[314633892,1708479043096,-2268.58,0.00020522,2]
[314633894,1708479043105,-500.0,0.00020522,2]
[314633895,1708479043115,-500.0,0.00020522,2]
[314633897,1708479043125,-500.0,0.00020522,2]
[314633899,1708479043134,-500.0,0.00020522,2]
[314633902,1708479043144,-500.0,0.00020522,2]
[314633904,1708479043153,-500.0,0.00020522,2]
[314633905,1708479043163,-807.74,0.00020522,2]
[314633906,1708479043173,-500.0,0.00020522,2]
[314633907,1708479043182,-500.0,0.00020522,2]
[314633908,1708479043191,-500.0,0.00020522,2]
[314633909,1708479043201,-151.0,0.00020522,2]
[314633910,1708479043210,-500.0,0.00020522,2]
[314633911,1708479043219,-500.0,0.00020522,2]
[314633912,1708479043229,-522.50366243,0.00020522,2]
[314633913,1708479043237,-500.0,0.00020522,2]
[314633914,1708479043246,-500.0,0.00020522,2]
[314633915,1708479043256,-500.0,0.00020522,2]
[314633916,1708479043265,-500.0,0.00020522,2]
[314633918,1708479043274,-285.80195916,0.00020522,2]
[314633919,1708479043566,-164.07,0.00020512,3]
[314633920,1708479043576,-376.43,0.00020522,2]
[314633927,1708479046206,-500.12749941,0.00020246,2]
[314633928,1708479046216,-500.0,0.00020246,2]
[314633929,1708479046225,-189.01940216,0.00020522,2]
[314633930,1708479046237,-429.43863868,0.00020522,2]
[314633931,1708479046246,-500.0,0.00020522,2]
[314633932,1708479046256,-500.0,0.00020522,2]
[314633933,1708479046265,-1569.52,0.00020522,2]
[314633934,1708479046274,-2779.64,0.00020522,2]
[314633935,1708479046283,-500.0,0.00020522,2]
[314633936,1708479046292,-244.41360938,0.00020522,2]
[314633937,1708479046301,-280.36983398,0.00020522,2]
[314633938,1708479046310,-500.0,0.00020522,2]
[314633939,1708479046319,-686.44,0.00020522,2]
[314633940,1708479046329,-633.28104033,0.00020522,2]
[314633941,1708479046339,-500.0,0.00020522,2]
[314633942,1708479046348,-1000.0,0.00020522,2]
[314633943,1708479046357,-500.0,0.00020522,2]
[314633944,1708479046366,-500.0,0.00020522,2]
[314633945,1708479046375,-500.0,0.00020522,2]
[314633946,1708479046384,-500.0,0.00020522,2]
[314633947,1708479046393,-500.0,0.00020522,2]
[314633948,1708479046402,-500.0,0.00020522,2]
[314633949,1708479046411,-500.0,0.00020522,2]
[314633950,1708479046420,-500.0,0.00020522,2]
[314633951,1708479046429,-552.73,0.00020522,2]
[314633952,1708479046440,-262.74783269,0.00020522,2]
[314633990,1708479306847,198.9718693,0.000189,2]
[314633992,1708479319412,282.0869532,0.00019031,2]
[314634117,1708480064507,-155.20953287,0.00019963,2]
[314634118,1708480064529,-155.20953287,0.00019964,2]
[314634119,1708480064550,-524.79095275,0.00019979,2]
[314634120,1708480064570,-691.36899456,0.00019989,2]
[314634121,1708480064591,-150.86319,0.0002,3]
[314634201,1708480238336,-155.20953287,0.0002005,2]
[314634202,1708480238346,-624.12143202,0.00020051,2]
[314634204,1708480238356,-2522.63,0.0002023,3]
[314634206,1708480238366,-2102.19,0.0002023,3]
[314634208,1708480238375,-1751.82,0.0002023,3]
[314634210,1708480238385,-1459.85,0.0002023,3]
[314634212,1708480238395,-820.39,0.00020231,3]
[314634214,1708480238403,-808804.89216269,0.00020232,2]
[314634282,1708480241529,-2192.05164608,0.00020232,2]
[314634285,1708480241543,-996.28439946,0.00020232,2]
[314634306,1708480243309,-1796.2532269,0.00020232,2]
[314634310,1708480246403,-42344.80802911,0.00020232,2]
[314634341,1708480321498,9998.1554424,0.00019242,2]
[314634355,1708480459878,155.37722923,0.000176,2]
[314634361,1708480757995,531.81550641,0.00019,2]
[314634362,1708480777985,531.81550641,0.00019,2]
[314634363,1708480797992,531.81550641,0.00019,2]
[314634364,1708480818055,531.81550641,0.00019,2]
[314634371,1708480835998,531.81550641,0.00019,2]
[314634372,1708480854002,531.81550641,0.00019,2]
[314634373,1708480874177,531.81550641,0.00019,2]
[314634374,1708480890170,531.81550641,0.00019,2]
[314634375,1708480912180,531.81550641,0.00019,2]
[314634376,1708480934198,531.81550641,0.00019,2]
[314634377,1708480950179,531.81550641,0.00019,2]
[314634378,1708480964176,233.10765526,0.00019,2]
[314634387,1708481272559,104912.0,0.00017,2]
[314634389,1708481281923,5000.0,0.00021088,14]
[314634390,1708481331987,7665.6708092,0.00019135,2]
[314634464,1708481432589,-155.20331634,0.00020017,2]
[314634466,1708481432599,-155.20331634,0.00020018,2]
[314634468,1708481432609,-165.33971368,0.00020019,2]
[314634470,1708481432619,-155.20331634,0.00020123,2]
[314634472,1708481432629,-3532.26830001,0.00020129,3]
[314634474,1708481432642,-393.47169999,0.00020129,3]
[314634476,1708481432651,-46.09330001,0.00020129,3]
[314634479,1708481432664,-501.04120554,0.00020129,3]
[314634481,1708481432676,-325.14397417,0.00020129,3]
[314634577,1708481438489,-55305.0347355,0.0002013,2]
[314634578,1708481438499,-318.56789815,0.0002013,2]
[314634580,1708481438508,-36280.15,0.00020138,2]
[314634582,1708481438519,-500.0,0.00020138,2]
[314634584,1708481438530,-500.0,0.00020138,2]
[314634586,1708481438539,-289.8929992,0.00020138,2]
[314634588,1708481438548,-1499.36,0.00020138,2]
[314634590,1708481438558,-3068.82,0.00020138,2]
[314634592,1708481438567,-1515.69051622,0.00020139,2]
[314634594,1708481438576,-500.0,0.00020139,2]
[314634596,1708481438585,-1514.42,0.00020139,2]
[314634597,1708481438596,-5567.68,0.00020139,2]
[314634599,1708481438606,-500.0,0.00020139,2]
[314634601,1708481438615,-41477.79,0.00020139,2]
[314634603,1708481438624,-1927.9,0.00020139,2]
[314634605,1708481438634,-818.55,0.00020139,2]
[314634606,1708481438643,-500.0,0.00020139,2]
[314634608,1708481438652,-1377.16,0.00020139,2]
[314634609,1708481438662,-500.0,0.0002014,2]
[314634610,1708481438672,-500.86039175,0.0002014,2]
[314634611,1708481438681,-500.0,0.0002014,2]
[314634612,1708481438690,-515.38336551,0.0002014,2]
[314634613,1708481438699,-365.73194452,0.0002014,2]
[314634614,1708481438709,-1426.72,0.0002014,2]
[314634615,1708481438718,-500.0,0.0002014,2]
[314634616,1708481438732,-522.29381296,0.0002014,2]
[314634617,1708481438741,-500.0,0.0002014,2]
[314634618,1708481438750,-500.0,0.0002014,2]
[314634619,1708481438759,-612.34,0.0002014,2]
[314634620,1708481438770,-500.0,0.0002014,2]
[314634621,1708481438779,-500.0,0.0002014,2]
[314634622,1708481438789,-500.0,0.0002014,2]
[314634623,1708481438798,-500.0,0.0002014,2]
[314634624,1708481438807,-500.0,0.0002014,2]
[314634625,1708481438817,-505.55014583,0.0002014,2]
[314634626,1708481438826,-500.0,0.0002014,2]
[314634627,1708481438835,-500.0,0.0002014,2]
[314634628,1708481438846,-500.0,0.0002014,2]
[314634629,1708481438855,-500.0,0.0002014,2]
[314634630,1708481438865,-662.92,0.0002014,2]
[314634631,1708481438874,-500.0,0.0002014,2]
[314634632,1708481438883,-500.0,0.0002014,2]
[314634633,1708481438892,-500.0,0.0002014,2]
[314634634,1708481438901,-519.64,0.0002014,2]
[314634635,1708481438911,-581.69424009,0.0002014,2]
[314634636,1708481438920,-500.0,0.0002014,2]
[314634637,1708481438930,-500.0,0.0002014,2]
[314634638,1708481438939,-500.0,0.0002014,2]
[314634639,1708481438949,-500.0,0.0002014,2]
[314634640,1708481438958,-500.0,0.0002014,2]
[314634641,1708481438967,-553.53,0.0002014,2]
[314634642,1708481438976,-1222.52,0.0002014,2]
[314634643,1708481438985,-500.0,0.0002014,2]
[314634644,1708481438995,-169.13718039,0.0002014,2]
[314634645,1708481439004,-513.16674299,0.0002014,2]
[314634646,1708481439014,-500.0,0.0002014,2]
[314634647,1708481439023,-500.0,0.0002014,2]
[314634648,1708481439033,-500.0,0.0002014,2]
[314634649,1708481439042,-518.58,0.0002014,2]
[314634650,1708481439051,-611.21562422,0.0002014,2]
[314634651,1708481439060,-500.0,0.0002014,2]
[314634652,1708481439069,-500.0,0.0002014,2]
[314634653,1708481439078,-2387.47,0.0002014,2]
[314634654,1708481439086,-500.0,0.0002014,2]
[314634655,1708481439097,-885.24,0.0002014,2]
[314634656,1708481439107,-500.0,0.0002014,2]
[314634657,1708481439116,-500.0,0.0002014,2]
[314634658,1708481439125,-500.0,0.0002014,2]
[314634659,1708481439134,-500.0,0.0002014,2]
[314634660,1708481439144,-500.0,0.0002014,2]
[314634661,1708481439153,-500.0,0.0002014,2]
[314634662,1708481439162,-500.0,0.0002014,2]
[314634663,1708481439171,-500.0,0.0002014,2]
[314634664,1708481439180,-500.0,0.0002014,2]
[314634665,1708481439189,-500.0,0.0002014,2]
[314634666,1708481439198,-2233.13,0.0002014,2]
[314634667,1708481439207,-497.50237667,0.0002014,2]
[314634668,1708481439216,-500.0,0.0002014,2]
[314634669,1708481439226,-500.0,0.0002014,2]
[314634670,1708481439235,-908.25,0.0002014,2]
[314634671,1708481439244,-500.0,0.0002014,2]
[314634672,1708481439253,-774.17,0.0002014,2]
[314634673,1708481439262,-500.0,0.0002014,2]
[314634674,1708481439272,-500.0,0.0002014,2]
[314634675,1708481439281,-500.0,0.0002014,2]
[314634676,1708481439290,-1408.56,0.0002014,2]
[314634677,1708481439300,-3033.55,0.0002014,2]
[314634678,1708481439309,-500.0,0.0002014,2]
[314634679,1708481439318,-500.0,0.0002014,2]
[314634680,1708481439327,-500.0,0.0002014,2]
[314634681,1708481439337,-500.0,0.0002014,2]
[314634682,1708481439348,-500.0,0.0002014,2]
[314634683,1708481439358,-500.0,0.0002014,2]
[314634684,1708481439366,-500.0,0.0002014,2]
[314634685,1708481439376,-151.0,0.0002014,2]
[314634686,1708481439385,-500.0,0.0002014,2]
[314634687,1708481439394,-500.0,0.0002014,2]
[314634688,1708481439403,-1285.43,0.0002014,2]
[314634689,1708481439413,-500.40141674,0.0002014,2]
[314634690,1708481439421,-266.20144439,0.0002014,2]
[314634691,1708481439431,-500.0,0.0002014,2]
[314634692,1708481439440,-500.10655657,0.0002014,2]
[314634693,1708481439449,-500.0,0.0002014,2]